bitfinex/quotes_SOLUSD_20240726
["timestamp","ask_amount","ask_price","bid_price","bid_amount"]
[1722025676970,18.49,182.15,182.1,5.4914]
[1722025680476,18.49,182.15,182.11,5.491]
[1722025681071,5.49,182.15,182.11,5.491]
[1722025684782,5.4904,182.14,182.1,18.4914]
[1722025685161,5.4904,182.14,182.1,19.58956646]
[1722025685366,5.4893,182.17,182.13,13.0]
[1722025685559,46.03,182.2,182.14,13.0]
[1722025685957,33.03,182.2,182.13,13.0]
[1722025686168,13.0,182.19,182.13,13.0]
[1722025686778,5.4893,182.18,182.13,18.4905]
[1722025687168,5.4894,182.17,182.13,18.4905]
[1722025687565,5.4894,182.17,182.13,13.0]
[1722025687759,5.4894,182.17,182.12,5.4908]
[1722025687964,5.4894,182.17,182.13,13.0]
[1722025689400,58.0,182.19,182.12,18.4908]
[1722025689401,5.4897,182.16,182.12,18.4908]
[1722025689578,5.4897,182.16,182.12,13.0]
[1722025690601,13.0,182.17,182.11,13.0]
[1722025690770,5.4902,182.15,182.1,18.4914]
[1722025690973,13.0,182.14,182.08,19.2219]
[1722025691306,5.4906,182.13,182.08,32.2219]
[1722025691676,18.4903,182.14,182.09,5.4917]
[1722025692368,5.4903,182.14,182.1,5.4914]
[1722025692567,5.49,182.15,182.1,18.4914]
[1722025692791,45.0,182.14,182.1,18.4914]
[1722025693686,5.4896,182.17,182.12,13.0]
[1722025693893,5.4896,182.17,182.12,18.4906]
[1722025694093,5.4896,182.17,182.13,13.0]
[1722025694291,5.4896,182.17,182.12,18.4906]
[1722025695803,18.4896,182.17,182.12,5.4906]
[1722025695994,5.4896,182.16,182.12,5.4906]
[1722025696300,5.4896,182.16,182.11,19.58912481]
[1722025696486,13.0,182.17,182.12,5.4907]
[1722025696688,13.0,182.17,182.11,18.4911]
[1722025696689,5.4896,182.16,182.11,18.4911]
[1722025696909,33.03,182.2,182.15,13.0]
[1722025697214,5.4885,182.2,182.16,26.7239]
[1722025697389,5.4885,182.2,182.16,13.7239]
[1722025698485,5.4882,182.21,182.16,32.2134]
[1722025698701,5.4882,182.21,182.17,18.4893]
[1722025699580,5.4882,182.21,182.17,13.0]
[1722025699777,72.0,182.34,182.16,19.2135]
[1722025699778,6.2057,182.28,182.2,13.0]
[1722025699980,6.2057,182.28,182.16,13.0]
[1722025699981,46.03,182.27,182.21,18.4879]
[1722025700209,5.4863,182.28,182.22,26.7196]
[1722025700712,18.4863,182.28,182.22,26.7196]
[1722025701096,18.4863,182.28,182.22,32.2074]
[1722025701411,5.4858,182.29,182.24,18.4872]
[1722025701706,18.4858,182.29,182.24,18.4872]
[1722025701878,18.4858,182.29,182.24,13.0]
[1722025702079,13.0,182.34,182.18,27.4447]
[1722025702080,0.7388626,182.43,182.29,16.52]
[1722025702313,0.7388626,182.43,182.26,16.3466]
[1722025702314,0.7388626,182.43,182.33,27.4225]
[1722025702604,8.60433362,182.41,182.36,18.4835]
[1722025702804,13.0,182.42,182.36,18.4835]
[1722025703190,22.33965061,182.43,182.39,5.4826]
[1722025703425,9.33965061,182.43,182.4,5.4823]
[1722025704305,9.33965061,182.43,182.39,5.4827]
[1722025704479,18.4818,182.42,182.36,13.0]
[1722025704983,22.33965061,182.43,182.38,18.483]
[1722025705403,22.33965061,182.43,182.38,19.57945604]
[1722025706485,27.82125061,182.43,182.38,5.483]
[1722025707578,27.82125061,182.43,182.38,6.57948078]
[1722025708080,19.2204626,182.43,182.38,6.57948078]
[1722025708280,19.2204626,182.43,182.38,6.57945075]
[1722025708480,13.7388626,182.43,182.38,5.483]
[1722025709408,19.2205626,182.43,182.38,5.483]
[1722025710606,13.7388626,182.43,182.39,5.4827]
[1722025711103,19.2203626,182.43,182.37,32.1911]
[1722025711605,19.2203626,182.43,182.38,5.4829]
[1722025712599,19.2203626,182.43,182.39,1.09646293]
[1722025713109,13.7388626,182.43,182.39,6.57916293]
[1722025713489,13.7388626,182.43,182.39,5.4827]
[1722025713903,13.0,182.42,182.37,13.7081]
[1722025714594,5.4821,182.41,182.37,13.7081]
[1722025714905,5.4818,182.42,182.37,19.1914]
[1722025716712,5.4818,182.42,182.37,32.1914]
[1722025718007,5.4818,182.42,182.37,19.1914]
[1722025718199,13.0,182.41,182.37,19.1914]
[1722025719115,13.0,182.41,182.38,5.483]
[1722025719408,13.7388626,182.43,182.38,5.483]
[1722025719609,45.0,182.42,182.38,5.483]
[1722025720203,45.0,182.42,182.39,5.4827]
[1722025721334,58.0,182.42,182.37,20.28765854]
[1722025721496,18.4824,182.41,182.36,5.4836]
[1722025721807,45.0,182.4,182.37,5.4833]
[1722025722309,45.0,182.41,182.37,5.4833]
[1722025723009,50.4821,182.41,182.37,5.4833]
[1722025725323,63.4821,182.41,182.37,5.4833]
[1722025725923,13.0,182.4,182.36,13.7086]
[1722025726113,13.0,182.39,182.36,13.7086]
[1722025726413,13.0,182.39,182.36,19.1922]
[1722025727014,13.0,182.4,182.36,19.1922]
[1722025727227,45.0,182.39,182.36,19.1922]
[1722025728026,13.0,182.37,182.29,27.4287]
[1722025728208,45.0,182.39,182.3,13.0]
[1722025728209,13.0,182.36,182.3,13.0]
[1722025728409,13.0,182.37,182.34,5.484]
[1722025728943,13.0,182.36,182.34,5.484]
[1722025729609,13.0,182.36,182.33,5.4845]
[1722025731333,13.0,182.37,182.33,5.4845]
[1722025731624,13.0,182.37,182.34,5.4842]
[1722025732234,13.0,182.36,182.34,5.4842]
[1722025736432,50.4827,182.39,182.29,27.4287]
[1722025736433,58.0,182.35,182.31,5.485]
[1722025737307,45.0,182.35,182.32,5.4847]
[1722025737509,45.0,182.36,182.32,5.4847]
[1722025737819,63.4836,182.36,182.32,5.4847]
[1722025738326,13.0,182.33,182.27,1.09699389]
[1722025738539,13.0,182.33,182.29,5.4856]
[1722025739834,13.0,182.33,182.3,5.4854]
[1722025746226,13.0,182.34,182.3,5.4854]
[1722025746523,45.0,182.33,182.3,5.4854]
[1722025749071,58.0,182.33,182.3,5.4854]
[1722025756884,58.0,182.33,182.29,5.4856]
[1722025760159,58.0,182.33,182.3,5.4854]
[1722025763678,13.0,182.31,182.28,19.2003]
[1722025763887,13.0,182.31,182.28,13.7145]
[1722025764080,13.0,182.31,182.29,5.4856]
[1722025764278,13.0,182.32,182.3,5.4854]
[1722025767583,13.0,182.32,182.29,5.4857]
[1722025767769,13.0,182.32,182.28,19.2004]
[1722025767971,58.0,182.31,182.28,19.2004]
[1722025768679,45.0,182.31,182.28,19.2004]
[1722025768878,13.0,182.32,182.28,13.7145]
[1722025769181,21.60463488,182.33,182.28,13.7145]
[1722025769481,21.60463488,182.33,182.3,5.4851]
[1722025771965,21.60463488,182.33,182.29,5.4856]
[1722025774992,27.08913488,182.33,182.29,5.4856]
[1722025777464,13.0,182.32,182.29,5.4856]
[1722025777659,18.4849,182.32,182.28,19.2004]
[1722025777880,58.0,182.31,182.27,5.4863]
[1722025778082,13.0,182.3,182.27,5.4863]
[1722025782194,58.0,182.31,182.28,5.4859]
[1722025784099,8.60463488,182.33,182.28,13.0]
[1722025784271,21.60463488,182.33,182.28,13.0]
[1722025784782,21.60463488,182.33,182.29,5.4857]
[1722025786296,27.08923488,182.33,182.28,18.4859]
[1722025786489,27.08923488,182.33,182.28,5.4859]
[1722025787996,5.4849,182.32,182.28,5.4859]
[1722025788990,5.4849,182.32,182.27,33.2987899]
[1722025790898,5.4851,182.31,182.27,33.2987899]
[1722025791698,5.4851,182.31,182.27,19.2016]
[1722025793297,5.4861,182.28,182.26,16.3466]
[1722025793481,18.4857,182.3,182.26,16.3466]
[1722025793970,5.4857,182.3,182.26,16.3466]
[1722025794285,18.4857,182.3,182.26,16.3466]
[1722025794486,18.4857,182.3,182.26,21.8332]
[1722025796402,13.0,182.3,182.26,21.8332]
[1722025798215,8.60480157,182.35,182.3,16.0477]
[1722025798511,0.7388626,182.43,182.39,13.7063]
[1722025798676,0.7388626,182.43,182.4,14.09630878]
[1722025798877,0.7388626,182.43,182.42,5.4818]
[1722025800616,0.7388626,182.43,182.41,13.7047]
[1722025800977,0.7388626,182.43,182.41,13.2047]
[1722025801697,0.7388626,182.43,182.41,18.6868]
[1722025801908,0.7388626,182.43,182.42,5.4818]
[1722025802118,0.7388626,182.43,182.42,6.57805087]
[1722025802412,0.7388626,182.43,182.42,19.57805087]
[1722025803700,0.2388626,182.43,182.42,19.57805087]
[1722025805793,13.0,182.5,182.45,5.4807]
[1722025806026,13.0,182.5,182.46,5.4805]
[1722025806316,13.0,182.49,182.44,19.1836]
[1722025806532,18.48,182.48,182.43,5.4814]
[1722025807097,18.48,182.48,182.44,5.4812]
[1722025807315,13.0,182.47,182.43,5.4815]
[1722025807695,5.4804,182.47,182.43,5.4815]
[1722025807925,18.48,182.48,182.43,5.4815]
[1722025808129,45.0,182.47,182.44,5.4812]
[1722025808330,36.0281,182.53,182.44,5.4812]
[1722025808509,13.0,182.49,182.45,5.4807]
[1722025808826,44.5,182.48,182.45,5.4807]
[1722025810526,13.0,182.49,182.45,5.4807]
[1722025811029,18.4794,182.5,182.45,5.4807]
[1722025811205,45.0,182.49,182.45,5.4807]
[1722025811403,63.4797,182.49,182.44,5.4812]
[1722025811599,5.48,182.48,182.44,5.4812]
[1722025811932,18.4801,182.48,182.43,19.1848]
[1722025813200,18.4801,182.48,182.44,5.4811]
[1722025814225,13.0,182.48,182.44,5.4811]
[1722025824560,13.0,182.47,182.45,5.4809]
[1722025824950,13.0,182.46,182.43,19.1845]
[1722025825345,45.0,182.45,182.43,19.1845]
[1722025826831,45.0,182.45,182.43,13.7033]
[1722025827473,45.0,182.46,182.43,19.1848]
[1722025827836,58.0,182.46,182.43,19.1848]
[1722025834469,58.0,182.46,182.41,5.4819]
[1722025835158,45.0,182.46,182.43,5.4812]
[1722025835366,58.0,182.47,182.43,5.4812]
[1722025835559,63.4804,182.47,182.43,5.4812]
[1722025836365,5.4806,182.46,182.42,19.1858]
[1722025836570,45.0,182.45,182.42,19.1858]
[1722025836869,63.4804,182.47,182.42,26.704]
[1722025836870,45.0,182.47,182.42,26.704]
[1722025837068,20.0,182.52,182.42,26.704]
[1722025837367,13.0,182.49,182.45,5.4808]
[1722025838469,18.4798,182.49,182.44,5.4811]
[1722025838879,45.0,182.48,182.44,5.4811]
[1722025839776,50.4801,182.48,182.44,5.4811]
[1722025840462,50.4801,182.48,182.43,18.4814]
[1722025840983,5.4806,182.46,182.42,13.704]
[1722025842161,5.4806,182.46,182.42,19.1858]
[1722025845593,13.0,182.46,182.39,16.0477]
[1722025845878,63.481,182.45,182.4,5.4824]
[1722025846076,50.481,182.45,182.41,5.4821]
[1722025847364,50.481,182.45,182.4,18.4823]
[1722025848281,50.481,182.45,182.4,19.57868061]
[1722025848979,50.481,182.45,182.41,5.482]
[1722025849359,45.0,182.45,182.42,5.4818]
[1722025850486,45.0,182.45,182.41,5.4821]
[1722025851359,45.0,182.45,182.41,6.57840918]
[1722025852582,50.4809,182.45,182.41,5.4821]
[1722025853084,63.4809,182.45,182.41,5.4821]
[1722025854188,50.4809,182.45,182.4,32.1877]
[1722025854360,50.4809,182.45,182.4,19.1877]
[1722025855489,50.4809,182.45,182.41,5.4821]
[1722025856393,45.0,182.45,182.41,5.4821]
[1722025856988,45.0,182.45,182.42,5.4817]
[1722025859470,13.0,182.46,182.42,5.4817]
[1722025859992,18.4804,182.47,182.42,5.4817]
[1722025860170,45.0,182.46,182.42,5.4817]
[1722025861269,50.4807,182.46,182.42,5.4817]
[1722025862986,50.4807,182.46,182.4,26.7054]
[1722025862987,45.0,182.46,182.43,5.4815]
[1722025863194,13.0,182.49,182.44,5.4811]
[1722025863394,45.0,182.48,182.44,5.4811]
[1722025863897,50.4801,182.48,182.44,5.4811]
[1722025864411,50.4801,182.48,182.43,18.4814]
[1722025864584,50.4801,182.48,182.43,5.4814]
[1722025864792,50.4801,182.48,182.43,18.4814]
[1722025866403,5.4803,182.47,182.43,18.4814]
[1722025872715,5.4803,182.47,182.39,43.4605]
[1722025872716,8.59868178,182.5,182.46,13.0]
[1722025873007,13.0,182.58,182.49,13.0]
[1722025873187,5.4775,182.57,182.52,13.0]
[1722025873588,5.4777,182.56,182.52,13.0]
[1722025874205,14.07378195,182.58,182.53,13.0]
[1722025874395,5.4771,182.58,182.53,18.4783]
[1722025874691,5.4771,182.58,182.52,13.6966]
[1722025874692,5.4766,182.6,182.55,18.4778]
[1722025874995,22.38124351,182.61,182.55,18.4778]
[1722025874996,5.4767,182.59,182.55,18.4778]
[1722025875315,5.4767,182.59,182.55,13.0]
[1722025876317,5.477,182.58,182.55,13.0]
[1722025876616,5.477,182.58,182.52,13.6966]
[1722025876617,5.4774,182.57,182.52,19.1751]
[1722025876792,5.4774,182.57,182.52,32.1751]
[1722025876990,5.4776,182.56,182.52,32.1751]
[1722025877617,5.4774,182.57,182.52,32.1751]
[1722025879319,5.4774,182.57,182.52,19.1751]
[1722025880125,18.4774,182.57,182.52,19.1751]
[1722025880819,5.4783,182.54,182.5,20.8259]
[1722025881019,18.4782,182.55,182.5,20.8259]
[1722025881989,63.4777,182.56,182.51,5.479]
[1722025882316,63.4777,182.56,182.52,5.4788]
[1722025882496,50.4777,182.56,182.52,5.4788]
[1722025882700,63.4777,182.56,182.52,5.4788]
[1722025883321,5.4783,182.54,182.5,5.4791]
[1722025884021,18.4783,182.54,182.49,19.1788]
[1722025884315,18.4783,182.54,182.5,5.4794]
[1722025886215,13.0,182.54,182.5,5.4794]
[1722025888308,18.478,182.55,182.5,5.4794]
[1722025888513,45.0,182.54,182.5,5.4794]
[1722025888821,58.0,182.54,182.5,5.4794]
[1722025890019,58.0,182.54,182.51,5.4791]
[1722025890901,13.0,182.53,182.49,19.1786]
[1722025891123,13.0,182.52,182.49,19.1786]
[1722025891423,18.4788,182.52,182.49,13.6991]
[1722025891996,13.0,182.52,182.49,13.6991]
[1722025892425,13.0,182.5,182.46,34.6439]
[1722025892729,13.0,182.49,182.43,26.7035]
[1722025893022,13.0,182.49,182.45,5.4807]
[1722025893810,13.0,182.48,182.45,5.4808]
[1722025894010,13.0,182.47,182.44,5.4811]
[1722025894319,13.0,182.47,182.45,5.4809]
[1722025894532,13.0,182.48,182.45,5.4809]
[1722025895029,13.0,182.47,182.45,5.4809]
[1722025895325,5.4795,182.5,182.45,5.4809]
[1722025895527,13.0,182.48,182.45,5.4809]
[1722025896814,13.0,182.49,182.45,5.4809]
[1722025897010,45.0,182.48,182.45,5.4809]
[1722025898346,13.0,182.49,182.45,13.7018]
[1722025898651,13.0,182.5,182.46,5.4806]
[1722025898812,18.4792,182.51,182.46,5.4806]
[1722025899131,45.0,182.5,182.46,5.4806]
[1722025900235,45.0,182.5,182.46,6.57665018]
[1722025900740,45.0,182.5,182.46,5.4806]
[1722025901034,45.0,182.5,182.46,6.5766251]
[1722025901208,45.0,182.5,182.46,5.4806]
[1722025901606,50.4794,182.5,182.46,5.4806]
[1722025901907,50.4794,182.5,182.45,32.1827]
[1722025902105,20.0,182.56,182.45,26.7018]
[1722025902651,18.4792,182.51,182.46,5.4805]
[1722025902856,5.4792,182.51,182.46,5.4805]
[1722025903045,13.0,182.5,182.46,5.4805]
[1722025903749,20.0,182.56,182.46,13.0]
[1722025903939,18.4786,182.53,182.49,5.4797]
[1722025904445,13.6936,182.57,182.49,5.4797]
[1722025904633,5.4783,182.54,182.49,18.4797]
[1722025905949,5.4786,182.53,182.49,18.4797]
[1722025906530,5.4786,182.53,182.49,13.0]
[1722025906736,5.4786,182.53,182.49,14.09581118]
[1722025907151,5.4786,182.53,182.49,1.09581118]
[1722025908038,5.4789,182.52,182.48,13.0]
[1722025908237,5.4789,182.52,182.47,32.1804]
[1722025909530,5.4789,182.52,182.48,5.48]
[1722025910354,36.0086,182.58,182.49,13.6989]
[1722025910562,18.4784,182.54,182.49,13.6989]
[1722025910862,18.4786,182.53,182.49,13.6989]
[1722025911857,18.4786,182.53,182.49,19.1786]
[1722025912071,5.4786,182.53,182.49,19.1786]
[1722025912958,18.4786,182.53,182.49,19.1786]
[1722025914146,5.4786,182.53,182.49,19.1786]
[1722025914349,18.4783,182.54,182.49,20.27441515]
[1722025914658,18.4783,182.54,182.49,19.1786]
[1722025917563,5.4785,182.53,182.49,19.1786]
[1722025917752,18.4785,182.53,182.49,19.1786]
[1722025919467,18.4785,182.53,182.49,13.6989]
[1722025919668,5.4789,182.52,182.48,21.9526]
[1722025921367,18.4786,182.53,182.48,21.9526]
[1722025922562,18.4786,182.53,182.49,5.4796]
[1722025926568,13.0,182.53,182.49,5.4796]
[1722025933557,13.0,182.53,182.5,5.4794]
[1722025943286,13.0,182.51,182.49,5.4797]
[1722025946398,63.4796,182.5,182.45,19.1828]
[1722025946608,13.0,182.49,182.45,19.1828]
[1722025946890,13.0,182.49,182.46,5.4806]
[1722025950083,18.4795,182.5,182.46,5.4806]
[1722025950287,45.0,182.49,182.46,5.4806]
[1722025950601,45.0,182.49,182.45,19.1828]
[1722025952491,50.4797,182.49,182.45,19.1828]
[1722025957996,50.4797,182.49,182.45,13.702]
[1722025958875,63.4797,182.49,182.45,13.702]
[1722025959600,18.4797,182.49,182.45,13.702]
[1722025959799,13.0,182.5,182.46,1.09600367]
[1722025960015,8.59661766,182.54,182.47,13.0]
[1722025960188,13.0,182.52,182.46,13.0]
[1722025960506,13.0,182.51,182.45,26.702]
[1722025960805,8.59661766,182.54,182.45,26.702]
[1722025961010,14.07511766,182.54,182.49,5.4797]
[1722025961218,27.07511766,182.54,182.48,13.0]
[1722025961380,5.4785,182.53,182.49,5.4797]
[1722025961582,5.4785,182.53,182.48,18.4799]
[1722025961803,5.4785,182.53,182.49,1.09583262]
[1722025962525,5.4788,182.52,182.49,1.09583262]
[1722025963003,5.4788,182.52,182.47,32.1808]
[1722025965699,5.4791,182.51,182.47,32.1808]
[1722025966105,5.4791,182.51,182.47,19.1808]
[1722025966326,18.4789,182.52,182.47,19.1808]
[1722025966724,5.4793,182.51,182.47,13.7005]
[1722025967133,18.4793,182.51,182.47,13.7005]
[1722025968411,18.4789,182.52,182.47,19.1807]
[1722025969030,18.4789,182.52,182.47,20.27653348]
[1722025970218,18.4789,182.52,182.47,19.1807]
[1722025970620,5.4791,182.51,182.47,19.1807]
[1722025971821,18.4791,182.51,182.47,19.1807]
[1722025972911,18.4791,182.51,182.47,13.7005]
[1722025973116,13.0,182.5,182.47,13.7005]
[1722025974139,13.0,182.5,182.47,19.1807]
[1722025976527,5.4786,182.53,182.49,5.4797]
[1722025976825,13.0,182.51,182.49,5.4797]
[1722025977215,13.0,182.51,182.48,5.4799]
[1722025978018,12.5,182.51,182.48,5.4799]
[1722025980546,12.5,182.51,182.47,19.1808]
[1722025980924,13.0,182.5,182.47,19.1808]
[1722025981641,13.0,182.5,182.48,5.48]
[1722025982033,13.0,182.51,182.48,5.48]
[1722025984544,20.0,182.55,182.49,13.6989]
[1722025984846,5.4785,182.53,182.49,19.1786]
[1722025985070,13.0,182.52,182.49,19.1786]
[1722025985739,5.4785,182.53,182.49,19.1786]
[1722025985939,28.1674942,182.61,182.53,5.4785]
[1722025985940,13.0,182.56,182.53,5.4785]
[1722025986152,5.4773,182.57,182.52,19.1757]
[1722025986448,13.0,182.55,182.52,19.1757]
[1722025986861,21.4856,182.58,182.53,5.4784]
[1722025987019,21.4856,182.58,182.52,13.697]
[1722025987020,13.0,182.55,182.52,13.697]
[1722025987525,13.0,182.55,182.49,13.0]
[1722025987735,13.0,182.52,182.48,13.6994]
[1722025987942,13.0,182.52,182.49,5.4797]
[1722025988525,13.0,182.52,182.5,5.4794]
[1722025990146,13.0,182.53,182.5,5.4794]
[1722025994962,13.0,182.51,182.45,13.7022]
[1722025995174,18.4791,182.51,182.45,13.7022]
[1722025995771,13.0,182.51,182.45,26.7022]
[1722025996067,13.0,182.52,182.49,5.4796]
[1722025996245,13.0,182.52,182.48,5.48]
[1722025997372,13.0,182.51,182.47,19.1806]
[1722025998064,13.0,182.5,182.47,19.1806]
[1722025998437,13.0,182.51,182.47,19.1806]
[1722026000357,20.0,182.56,182.47,13.7003]
[1722026000559,13.0,182.52,182.48,5.4799]
[1722026000866,45.0,182.51,182.48,5.4799]
[1722026001971,13.0,182.52,182.48,5.4799]
[1722026002181,5.4785,182.53,182.49,5.4797]
[1722026002354,18.4785,182.53,182.49,5.4797]
[1722026002745,13.0,182.52,182.48,6.57575194]
[1722026003474,5.4785,182.53,182.48,6.57575194]
[1722026003653,13.0,182.52,182.48,6.57575194]
[1722026004052,13.0,182.52,182.48,1.09585194]
[1722026004247,13.0,182.52,182.48,6.57575194]
[1722026005071,5.4788,182.52,182.48,6.57575194]
[1722026005251,5.4785,182.53,182.48,6.57575194]
[1722026005574,5.4785,182.53,182.48,19.57575194]
[1722026005970,5.4785,182.53,182.49,5.4796]
[1722026008369,5.4785,182.53,182.48,19.57585194]
[1722026008686,38.2976193,182.58,182.48,14.09585194]
[1722026008687,5.4783,182.54,182.48,14.09585194]
[1722026008887,18.4783,182.54,182.49,5.4796]
[1722026009274,5.4783,182.54,182.5,1.09577999]
[1722026009474,18.4783,182.54,182.5,1.09577999]
[1722026010691,18.4783,182.54,182.49,19.1784]
[1722026010894,18.4783,182.54,182.49,20.27418107]
[1722026011582,5.4785,182.53,182.49,20.27418107]
[1722026012280,5.4785,182.53,182.49,14.79458107]
[1722026012988,13.0,182.54,182.49,19.1784]
[1722026012989,5.4782,182.54,182.49,19.1784]
[1722026013197,18.4782,182.54,182.49,19.1784]
[1722026014366,5.4782,182.54,182.49,19.1784]
[1722026014667,18.4782,182.54,182.49,19.1784]
[1722026016189,13.0,182.56,182.51,13.6972]
[1722026016903,18.4783,182.54,182.49,5.4794]
[1722026017279,13.0,182.54,182.49,5.4794]
[1722026017598,5.4786,182.53,182.49,5.4796]
[1722026017798,18.4783,182.54,182.49,5.4796]
[1722026018001,13.0,182.53,182.49,5.4796]
[1722026018511,13.0,182.53,182.5,5.4793]
[1722026018673,13.0,182.53,182.49,5.4796]
[1722026019384,13.0,182.53,182.5,5.4793]
[1722026019782,13.0,182.53,182.49,5.4797]
[1722026020426,13.0,182.53,182.5,5.4793]
[1722026022300,45.0,182.55,182.51,13.6976]
[1722026022633,13.0,182.54,182.51,19.1766]
[1722026024139,13.0,182.53,182.49,5.4797]
[1722026024310,13.0,182.52,182.49,5.4797]
[1722026024646,13.0,182.52,182.5,5.4793]
[1722026024803,13.0,182.53,182.5,5.4793]
[1722026028140,13.0,182.53,182.49,5.4796]
[1722026030514,13.0,182.53,182.5,5.4794]
[1722026032715,13.0,182.53,182.49,5.4797]
[1722026033143,13.0,182.53,182.5,5.4794]
[1722026034345,18.4783,182.54,182.5,5.4794]
[1722026035811,13.0,182.53,182.49,5.4796]
[1722026036042,13.0,182.5,182.45,13.702]
[1722026036339,13.0,182.49,182.45,13.702]
[1722026036727,13.0,182.49,182.47,5.4803]
[1722026038346,13.0,182.5,182.47,5.4803]
[1722026040451,13.0,182.49,182.45,13.702]
[1722026040746,13.0,182.49,182.46,5.4805]
[1722026041947,13.0,182.49,182.47,5.4802]
[1722026042728,13.0,182.5,182.47,5.4802]
[1722026043345,13.0,182.48,182.46,5.4806]
[1722026043648,13.0,182.48,182.45,13.702]
[1722026044341,13.0,182.48,182.45,19.1827]
[1722026047152,13.0,182.46,182.45,19.1827]
[1722026047629,13.0,182.46,182.45,13.702]
[1722026048955,13.0,182.46,182.43,5.4815]
[1722026049149,13.0,182.44,182.42,19.186]
[1722026049345,13.0,182.45,182.42,19.186]
[1722026049527,13.0,182.44,182.43,5.4815]
[1722026050557,13.0,182.44,182.42,19.1861]
[1722026050757,13.0,182.45,182.42,19.1861]
[1722026052146,5.4804,182.47,182.42,19.1861]
[1722026052349,13.0,182.46,182.43,1.09619416]
[1722026052735,13.0,182.47,182.44,5.4812]
[1722026052932,5.4797,182.49,182.44,5.4812]
[1722026053134,13.0,182.47,182.44,5.4812]
[1722026054050,13.0,182.47,182.43,5.4815]
[1722026054347,8.59864886,182.5,182.42,19.186]
[1722026054348,13.0,182.45,182.42,19.186]
[1722026055848,13.0,182.45,182.42,13.7043]
[1722026056436,13.0,182.46,182.42,13.7043]
[1722026056640,8.59864886,182.5,182.44,5.4812]
[1722026056853,14.07834886,182.5,182.45,6.5767677]
[1722026057151,18.4797,182.49,182.45,6.5767677]
[1722026057342,13.0,182.49,182.45,6.5767677]
[1722026058251,18.4799,182.49,182.45,1.0960677]
[1722026058448,18.4799,182.49,182.45,6.5769677]
[1722026058856,18.4799,182.49,182.45,1.0960677]
[1722026059034,18.4799,182.49,182.44,19.1839]
[1722026059853,5.4801,182.48,182.44,19.1839]
[1722026061255,18.4801,182.48,182.44,19.1839]
[1722026061845,13.0,182.48,182.44,19.1839]
[1722026062154,6.5998,182.55,182.46,13.7012]
[1722026062353,28.9188,182.56,182.46,42.5375]
[1722026062542,13.0,182.52,182.48,5.4799]
[1722026063353,18.4788,182.52,182.47,5.4802]
[1722026064351,18.4788,182.52,182.48,5.48]
[1722026064558,18.4788,182.52,182.49,1.09581281]
[1722026064761,5.4788,182.52,182.49,1.09581281]
[1722026066063,5.4788,182.52,182.48,5.48]
[1722026066451,18.4788,182.52,182.48,5.48]
[1722026066864,5.4788,182.52,182.48,5.48]
[1722026067163,18.4788,182.52,182.48,5.48]
[1722026067760,18.4788,182.52,182.47,5.4802]
[1722026067949,18.4792,182.51,182.47,5.4802]
[1722026068549,13.0,182.5,182.46,29.5375]